fUSD/lending_fUSD_20240211
["ID","MTS","AMOUNT","RATE_DAILY","PERIOD"]
[313759798,1707684645520,-404.09077225,0.00032012,7]
[313759800,1707684645529,-1671.93447688,0.00032012,7]
[313759802,1707684645538,-151.0,0.00032024,7]
[313759804,1707684645547,-151.0,0.00032024,7]
[313759806,1707684645556,-151.0,0.00032024,7]
[313759808,1707684645565,-151.0,0.00032024,7]
[313759810,1707684645574,-151.0,0.00032024,7]
[313759812,1707684645583,-156.008003,0.00032024,7]
[313759814,1707684645592,-151.0,0.00032024,7]
[313759816,1707684645602,-152.0,0.00032046,4]
[313759818,1707684645611,-151.0,0.00032103,120]
[313759820,1707684645620,-1000.0,0.00032196,2]
[313759822,1707684645629,-200.0,0.000322,5]
[313759824,1707684645638,-153.64,0.000322,2]
[313759826,1707684645647,-153.64,0.000322,2]
[313759828,1707684645657,-153.64,0.000322,2]
[313759830,1707684645670,-153.64,0.000322,2]
[313759832,1707684645679,-2845.95805431,0.00032355,4]
[313759834,1707684645688,-828.42563344,0.00032413,6]
[313759836,1707684645698,-150.0,0.00032444,2]
[313759837,1707684645708,-205.0,0.00032473,18]
[313759840,1707684645718,-500.0,0.000325,2]
[313759842,1707684645727,-151.0,0.00032662,7]
[313759844,1707684645737,-289.030635,0.00032662,7]
[313759847,1707684645747,-289.030635,0.00032662,7]
[313759850,1707684645757,-157.551952,0.00032662,7]
[313759854,1707684645767,-157.551952,0.00032662,7]
[313759856,1707684645776,-270.570413,0.00032662,7]
[313759859,1707684645785,-270.570413,0.00032662,7]
[313759861,1707684645794,-151.0,0.00032662,7]
[313759863,1707684645803,-260.253857,0.00032662,7]
[313759865,1707684645812,-217.454432,0.00032662,7]
[313759868,1707684645822,-261.450472,0.00032662,7]
[313759871,1707684645831,-261.450472,0.00032662,7]
[313759874,1707684645840,-226.838109,0.00032662,7]
[313759876,1707684645849,-226.838109,0.00032662,7]
[313759878,1707684645859,-302.630419,0.00032662,7]
[313759881,1707684645868,-302.630419,0.00032662,7]
[313759884,1707684645878,-151.0,0.00032662,7]
[313759889,1707684645887,-151.0,0.00032662,7]
[313759891,1707684645896,-614.68345,0.00032662,7]
[313759893,1707684645905,-614.68345,0.00032662,7]
[313759896,1707684645915,-330.791154,0.00032662,7]
[313759901,1707684645925,-164.999976,0.00032662,7]
[313759904,1707684645934,-330.791154,0.00032662,7]
[313759906,1707684645943,-164.999976,0.00032662,7]
[313759909,1707684645953,-151.0,0.00032662,7]
[313759911,1707684645962,-151.0,0.00032662,7]
[313759914,1707684645972,-151.0,0.00032662,2]
[313759917,1707684645981,-394.544641,0.00032662,7]
[313759919,1707684645991,-394.544641,0.00032662,7]
[313759921,1707684646001,-151.0,0.00032662,7]
[313759922,1707684646010,-6046.815854,0.00032662,7]
[313759924,1707684646019,-6046.815854,0.00032662,7]
[313759926,1707684646028,-1000.0,0.0003268,2]
[313759927,1707684646037,-151.0,0.0003268,7]
[313759929,1707684646046,-151.0,0.0003268,7]
[313759931,1707684646056,-1369.757817,0.0003268,7]
[313759933,1707684646065,-1369.757817,0.0003268,7]
[313759934,1707684646074,-151.0,0.0003268,7]
[313759936,1707684646083,-812.275566,0.0003268,7]
[313759938,1707684646093,-151.0,0.0003268,7]
[313759940,1707684646103,-812.275566,0.0003268,7]
[313759942,1707684646112,-173.62612,0.0003268,7]
[313759943,1707684646121,-173.62612,0.0003268,7]
[313759945,1707684646131,-200.0,0.000327,5]
[313759947,1707684646140,-14011.03556221,0.00032756,2]
[313759949,1707684646150,-151.0,0.00032756,7]
[313759951,1707684646161,-151.0,0.00032756,7]
[313759952,1707684646170,-151.0,0.00032756,7]
[313759954,1707684646179,-4272.069139,0.00032756,7]
[313759956,1707684646188,-4272.069139,0.00032756,7]
[313759958,1707684646198,-151.0,0.00032756,7]
[313759959,1707684646207,-151.0,0.00032756,7]
[313759961,1707684646216,-151.0,0.00032756,7]
[313759963,1707684646224,-565.062614,0.00032756,7]
[313759965,1707684646233,-1513.826675,0.00032756,7]
[313759966,1707684646242,-151.0,0.00032756,7]
[313759968,1707684646251,-1513.826675,0.00032756,7]
[313759970,1707684646260,-565.062614,0.00032756,7]
[313759987,1707684646453,-252.873058,0.00032756,7]
[313759989,1707684646463,-252.873058,0.00032756,7]
[313759991,1707684646472,-248.292148,0.00032756,7]
[313759993,1707684646481,-248.292148,0.00032756,7]
[313759995,1707684646490,-151.0,0.00032756,7]
[313759997,1707684646499,-151.0,0.00032756,7]
[313759998,1707684646507,-151.0,0.00032756,7]
[313760000,1707684646517,-151.0,0.00032758,30]
[313760002,1707684646526,-3501.9011,0.00032777,2]
[313760004,1707684646535,-1006.9499392,0.0003278,5]
[313760006,1707684646544,-151.0,0.0003284,2]
[313760008,1707684646553,-303.3,0.00032862,2]
[313760010,1707684646562,-150.30271779,0.00032877,2]
[313760011,1707684646571,-1030.12,0.00032877,2]
[313760013,1707684646580,-203.43076038,0.00032877,2]
[313760015,1707684646589,-155.0,0.00032877,2]
[313760017,1707684646598,-725.572931,0.0003288,7]
[313760019,1707684646607,-725.572931,0.0003288,7]
[313760021,1707684646616,-212.715945,0.0003288,7]
[313760022,1707684646625,-212.715945,0.0003288,7]
[313760024,1707684646634,-151.0,0.0003288,7]
[313760026,1707684646645,-151.0,0.0003288,7]
[313760028,1707684646654,-151.0,0.0003288,7]
[313760030,1707684646668,-165.287104,0.0003288,7]
[313760032,1707684646677,-165.287104,0.0003288,7]
[313760034,1707684646686,-151.0,0.0003288,7]
[313760035,1707684646694,-151.0,0.0003288,7]
[313760037,1707684646703,-151.0,0.0003288,7]
[313760039,1707684646713,-159.949608,0.0003288,7]
[313760041,1707684646722,-151.0,0.0003288,7]
[313760043,1707684646731,-8085.5,0.0003288,2]
[313760045,1707684646740,-8085.5,0.0003288,2]
[313760046,1707684646749,-8085.5,0.0003288,2]
[313760048,1707684646758,-8085.5,0.0003288,2]
[313760050,1707684646767,-8085.5,0.0003288,2]
[313760052,1707684646776,-751.38492863,0.000329,2]
[313760054,1707684646785,-232.6857539,0.0003298,4]
[313760056,1707684646795,-3444.87469517,0.0003298,5]
[313760058,1707684646804,-151.0,0.0003298,7]
[313760059,1707684646813,-151.0,0.0003298,7]
[313760061,1707684646822,-2091.405351,0.0003298,7]
[313760063,1707684646831,-151.0,0.0003298,7]
[313760065,1707684646841,-2091.405351,0.0003298,7]
[313760067,1707684646850,-971.912926,0.0003298,7]
[313760069,1707684646859,-971.912926,0.0003298,7]
[313760071,1707684646867,-1189.172785,0.0003298,7]
[313760072,1707684646876,-1189.172785,0.0003298,7]
[313760074,1707684646885,-151.0,0.0003298,7]
[313760076,1707684646894,-624.0,0.0003298,120]
[313760078,1707684646903,-1961.18421182,0.00032997,2]
[313760080,1707684646912,-50000.0,0.00033,3]
[313760082,1707684646921,-441.7413718,0.00033,10]
[313760083,1707684646930,-20000.0,0.00033,3]
[313760085,1707684646939,-11512.94,0.00033,3]
[313760087,1707684646948,-1450.0,0.00033,3]
[313760089,1707684646958,-2000.0,0.00033,2]
[313760091,1707684646967,-156.004406,0.00033,7]
[313760093,1707684646976,-150.0,0.00033021,2]
[313760094,1707684646985,-751.09,0.00033148,2]
[313760096,1707684646994,-200.0,0.000332,6]
[313760098,1707684647004,-415.87269452,0.0003323,4]
[313760100,1707684647013,-1000.0,0.00033311,2]
[313760102,1707684647023,-10000.0,0.00033381,3]
[313760104,1707684647032,-151.0,0.00033426,7]
[313760106,1707684647041,-1000.0,0.00033478,7]
[313760107,1707684647050,-1000.0,0.00033478,7]
[313760109,1707684647059,-200.0,0.000335,6]
[313760111,1707684647069,-434.39,0.000335,2]
[313760113,1707684647078,-434.39,0.000335,2]
[313760115,1707684647086,-434.39,0.000335,2]
[313760117,1707684647095,-434.39,0.000335,2]
[313760119,1707684647105,-434.39,0.000335,2]
[313760120,1707684647114,-434.39,0.000335,2]
[313760122,1707684647123,-434.39,0.000335,2]
[313760124,1707684647132,-434.39,0.000335,2]
[313760126,1707684647142,-434.39,0.000335,2]
[313760128,1707684647151,-434.39,0.000335,2]
[313760130,1707684647159,-434.39,0.000335,2]
[313760132,1707684647169,-434.39,0.000335,2]
[313760133,1707684647177,-434.39,0.000335,2]
[313760135,1707684647186,-434.39,0.000335,2]
[313760136,1707684647195,-434.39,0.000335,2]
[313760137,1707684647204,-434.39,0.000335,2]
[313760138,1707684647213,-434.39,0.000335,2]
[313760139,1707684647222,-434.39,0.000335,2]
[313760140,1707684647231,-434.39,0.000335,2]
[313760141,1707684647240,-434.39,0.000335,2]
[313760142,1707684647249,-1000.0,0.00033501,7]
[313760143,1707684647258,-2845.95805431,0.00033536,5]
[313760144,1707684647268,-243.89230082,0.00033567,4]
[313760145,1707684647277,-155.0,0.00033567,4]
[313760146,1707684647286,-1128.5791407,0.0003357,2]
[313760147,1707684647295,-500.0,0.0003357,2]
[313760148,1707684647304,-313.83822338,0.00033574,30]
[313760149,1707684647313,-1000.0,0.00033597,7]
[313760151,1707684647323,-1000.0,0.00033597,7]
[313760152,1707684647332,-150.0,0.00033598,2]
[313760154,1707684647342,-1000.0,0.00033603,7]
[313760156,1707684647351,-152.0,0.00033672,5]
[313760159,1707684647360,-200.0,0.000337,6]
[313760161,1707684647370,-1000.0,0.000337,2]
[313760162,1707684647379,-262.58,0.00033759,2]
[313760164,1707684647390,-150.0,0.00033866,30]
[313760167,1707684647401,-156.25158029,0.00033866,30]
[313760168,1707684647410,-150.0,0.00033866,30]
[313760170,1707684647419,-50000.0,0.00033867,10]
[313760172,1707684647428,-50000.0,0.00033867,10]
[313760175,1707684647438,-50000.0,0.00033867,10]
[313760176,1707684647448,-49059.24303165,0.00033867,10]
[313760179,1707684647457,-12959.72926319,0.00033867,10]
[313760181,1707684647466,-19827.06389445,0.00033867,10]
[313760183,1707684647475,-151.0,0.00033867,7]
[313760184,1707684647484,-151.0,0.00033867,7]
[313760186,1707684647494,-151.0,0.00033867,7]
[313760188,1707684647503,-151.0,0.00033867,7]
[313760191,1707684647512,-151.0,0.00033867,7]
[313760192,1707684647520,-151.0,0.00033867,7]
[313760194,1707684647530,-175.861797,0.00033867,7]
[313760196,1707684647539,-22269.67379543,0.00033867,10]
[313760198,1707684647548,-151.0,0.00033867,7]
[313760200,1707684647557,-289.030635,0.00033867,7]
[313760202,1707684647566,-289.030635,0.00033867,7]
[313760205,1707684647575,-20177.09800095,0.00033867,10]
[313760207,1707684647585,-151.0,0.000339,7]
[313760209,1707684647595,-151.0,0.000339,7]
[313760210,1707684647605,-150.17024417,0.000339,2]
[313760212,1707684647613,-150.17024411,0.000339,2]
[313760215,1707684647623,-150.17024411,0.000339,2]
[313760217,1707684647633,-150.17024411,0.000339,2]
[313760219,1707684647642,-150.17024411,0.000339,2]
[313760220,1707684647652,-150.17024411,0.000339,2]
[313760222,1707684647664,-150.17024411,0.000339,2]
[313760224,1707684647675,-150.17024411,0.000339,2]
[313760227,1707684647684,-150.17024411,0.000339,2]
[313760229,1707684647694,-150.17024411,0.000339,2]
[313760231,1707684647703,-150.17024411,0.000339,2]
[313760233,1707684647713,-150.17024411,0.000339,2]
[313760235,1707684647723,-150.17024411,0.000339,2]
[313760237,1707684647733,-150.17024411,0.000339,2]
[313760239,1707684647743,-150.17024411,0.000339,2]
[313760241,1707684647753,-150.17024411,0.000339,2]
[313760243,1707684647762,-150.17024411,0.000339,2]
[313760245,1707684647771,-150.17024411,0.000339,2]
[313760247,1707684647780,-150.17024411,0.000339,2]
[313760249,1707684647789,-150.17024411,0.000339,2]
[313760251,1707684647798,-150.17024411,0.000339,2]
[313760253,1707684647807,-150.17024411,0.000339,2]
[313760255,1707684647815,-150.17024411,0.000339,2]
[313760257,1707684647825,-150.17024411,0.000339,2]
[313760259,1707684647835,-150.17024411,0.000339,2]
[313760261,1707684647844,-150.17024411,0.000339,2]
[313760263,1707684647854,-150.17024411,0.000339,2]
[313760265,1707684647863,-150.17024411,0.000339,2]
[313760267,1707684647872,-150.17024411,0.000339,2]
[313760269,1707684647881,-150.17024411,0.000339,2]
[313760271,1707684647889,-150.17024411,0.000339,2]
[313760273,1707684647898,-150.17024411,0.000339,2]
[313760275,1707684647909,-150.17024411,0.000339,2]
[313760277,1707684647918,-150.17024411,0.000339,2]
[313760279,1707684647928,-150.17024411,0.000339,2]
[313760281,1707684647939,-150.17024411,0.000339,2]
[313760283,1707684647949,-150.17024411,0.000339,2]
[313760285,1707684647960,-150.17024411,0.000339,2]
[313760286,1707684647969,-150.17024411,0.000339,2]
[313760289,1707684647979,-150.17024411,0.000339,2]
[313760291,1707684647989,-22688.589578,0.00033916,2]
[313760293,1707684647998,-157.551952,0.00033916,7]
[313760295,1707684648007,-157.551952,0.00033916,7]
[313760297,1707684648016,-270.570413,0.00033916,7]
[313760299,1707684648025,-270.570413,0.00033916,7]
[313760301,1707684648034,-151.0,0.00033916,7]
[313760303,1707684648044,-151.0,0.00033916,7]
[313760305,1707684648053,-281.373137,0.00033916,7]
[313760307,1707684648062,-1369.757817,0.00033916,7]
[313760309,1707684648071,-1369.757817,0.00033916,7]
[313760311,1707684648080,-151.0,0.00033916,7]
[313760313,1707684648089,-812.275566,0.00033916,7]
[313760315,1707684648098,-151.0,0.00033916,7]
[313760317,1707684648107,-812.275566,0.00033916,7]
[313760319,1707684648117,-173.62612,0.00033916,7]
[313760321,1707684648126,-173.62612,0.00033916,7]
[313760323,1707684648135,-261.450472,0.00033916,7]
[313760325,1707684648143,-261.450472,0.00033916,7]
[313760327,1707684648153,-226.838109,0.00033916,7]
[313760329,1707684648162,-226.838109,0.00033916,7]
[313760331,1707684648171,-302.630419,0.00033916,7]
[313760333,1707684648180,-302.630419,0.00033916,7]
[313760335,1707684648189,-151.0,0.00033916,7]
[313760337,1707684648198,-151.0,0.00033916,7]
[313760339,1707684648207,-614.68345,0.00033916,7]
[313760341,1707684648217,-614.68345,0.00033916,7]
[313760343,1707684648226,-330.791154,0.00033916,7]
[313760345,1707684648235,-164.999976,0.00033916,7]
[313760347,1707684648244,-330.791154,0.00033916,7]
[313760349,1707684648254,-164.999976,0.00033916,7]
[313760351,1707684648262,-151.0,0.00033916,7]
[313760353,1707684648271,-279.620148,0.00033916,7]
[313760355,1707684648280,-700.0,0.0003397,2]
[313760357,1707684648289,-500.0,0.0003397,2]
[313760359,1707684648298,-5000.0,0.0003398,2]
[313760361,1707684648309,-624.0,0.0003398,120]
[313760363,1707684648319,-248.463908,0.0003398,2]
[313760365,1707684648328,-394.544641,0.0003398,7]
[313760367,1707684648337,-394.544641,0.0003398,7]
[313760369,1707684648346,-151.0,0.0003398,7]
[313760371,1707684648355,-6046.815854,0.0003398,7]
[313760373,1707684648364,-6046.815854,0.0003398,7]
[313760375,1707684648373,-7812.84831677,0.00033983,4]
[313760377,1707684648382,-425.51124655,0.00033983,4]
[313760379,1707684648391,-313.83822338,0.00033999,30]
[313760381,1707684648400,-50000.0,0.00034,4]
[313760383,1707684648409,-767.32331922,0.00034,4]
[313760385,1707684648419,-1022.0,0.00034,4]
[313760387,1707684648428,-300.0,0.00034,35]
[313760389,1707684648437,-1000.0,0.00034,2]
[313760391,1707684648446,-150.0,0.00034,2]
[313760393,1707684648455,-9000.0,0.00034,3]
[313760395,1707684648464,-2007.5395422,0.00034,2]
[313760397,1707684648473,-8333.33,0.00034,2]
[313760400,1707684648483,-8333.33,0.00034,2]
[313760402,1707684648492,-8333.33,0.00034,2]
[313760404,1707684648501,-8333.33,0.00034,2]
[313760406,1707684648511,-8333.33,0.00034,2]
[313760407,1707684648520,-8333.33,0.00034,2]
[313760409,1707684648529,-8333.33,0.00034,2]
[313760411,1707684648538,-8333.33,0.00034,2]
[313760413,1707684648547,-8333.33,0.00034,2]
[313760415,1707684648556,-8333.33,0.00034,2]
[313760417,1707684648565,-8333.33,0.00034,2]
[313760419,1707684648574,-8333.33,0.00034,2]
[313760421,1707684648582,-8333.33,0.00034,2]
[313760423,1707684648591,-8333.33,0.00034,2]
[313760425,1707684648600,-8333.33,0.00034,2]
[313760427,1707684648609,-8333.33,0.00034,2]
[313760429,1707684648618,-8333.33,0.00034,2]
[313760431,1707684648627,-8333.33,0.00034,2]
[313760433,1707684648636,-8333.33,0.00034,2]
[313760435,1707684648645,-8333.33,0.00034,2]
[313760437,1707684648655,-8333.33,0.00034,2]
[313760439,1707684648666,-8333.33,0.00034,2]
[313760441,1707684648675,-8333.33,0.00034,2]
[313760443,1707684648684,-8333.41,0.00034,2]
[313760445,1707684648693,-200.0,0.00034,7]
[313760447,1707684648703,-725.572931,0.00034,7]
[313760449,1707684648712,-200.0,0.00034,2]
[313760451,1707684648721,-725.572931,0.00034,7]
[313760453,1707684648731,-212.715945,0.00034,7]
[313760455,1707684648741,-212.715945,0.00034,7]
[313760457,1707684648750,-151.0,0.00034,7]
[313760459,1707684648759,-194.388435,0.00034,7]
[313760461,1707684648768,-151.0,0.00034,7]
[313760463,1707684648777,-165.287104,0.00034,7]
[313760465,1707684648786,-165.287104,0.00034,7]
[313760467,1707684648795,-151.0,0.00034,7]
[313760469,1707684648804,-151.0,0.00034,7]
[313760471,1707684648813,-151.0,0.00034,7]
[313760473,1707684648822,-151.0,0.00034,7]
[313760475,1707684648831,-237.924209,0.00034,2]
[313760477,1707684648840,-151.0,0.00034,7]
[313760479,1707684648850,-151.0,0.00034,7]
[313760481,1707684648859,-2091.405351,0.00034,7]
[313760483,1707684648868,-151.0,0.00034,7]
[313760485,1707684648877,-2091.405351,0.00034,7]
[313760487,1707684648885,-971.912926,0.00034,7]
[313760489,1707684648894,-971.912926,0.00034,7]
[313760491,1707684648903,-1189.172785,0.00034,7]
[313760493,1707684648912,-1189.172785,0.00034,7]
[313760495,1707684648921,-151.0,0.00034,7]
[313760497,1707684648930,-151.0,0.00034,7]
[313760499,1707684648939,-151.0,0.00034,7]
[313760501,1707684648948,-151.0,0.00034,7]
[313760503,1707684648957,-4272.069139,0.00034,7]
[313760505,1707684648966,-4272.069139,0.00034,7]
[313760507,1707684648976,-151.0,0.00034,7]
[313760509,1707684648985,-151.0,0.00034,7]
[313760511,1707684648994,-151.0,0.00034,7]
[313760513,1707684649003,-565.062614,0.00034,7]
[313760515,1707684649012,-1513.826675,0.00034,7]
[313760517,1707684649021,-151.0,0.00034,7]
[313760519,1707684649030,-1513.826675,0.00034,7]
[313760521,1707684649039,-565.062614,0.00034,7]
[313760523,1707684649048,-1986.607498,0.00034,2]
[313760525,1707684649057,-252.873058,0.00034,7]
[313760527,1707684649066,-252.873058,0.00034,7]
[313760547,1707684649229,-248.292148,0.00034,7]
[313760550,1707684649256,-248.292148,0.00034,7]
[313760552,1707684649266,-151.0,0.00034,7]
[313760554,1707684649275,-151.0,0.00034,7]
[313760556,1707684649284,-151.0,0.00034,7]
[313760558,1707684649294,-1605.60907827,0.00034002,10]
[313760560,1707684649303,-150.17024411,0.00034011,2]
[313760562,1707684649312,-260.144699,0.00034048,2]
[313760564,1707684649321,-180.320062,0.00034048,2]
[313760565,1707684649331,-248.91,0.00034104,2]
[313760567,1707684649341,-151.0,0.00034109,4]
[313760569,1707684649351,-150.0,0.00034175,2]
[313760571,1707684649360,-607.641422,0.00034175,2]
[313760573,1707684649370,-593.671814,0.00034175,2]
[313760575,1707684649380,-8021.177545,0.00034175,2]
[313760577,1707684649389,-200.0,0.000342,7]
[313760579,1707684649399,-150.17024411,0.00034289,2]
[313760582,1707684649408,-22000.0,0.0003429,7]
[313760584,1707684649418,-153.64,0.000343,2]
[313760585,1707684649427,-153.64,0.000343,2]
[313760588,1707684649437,-153.64,0.000343,2]
[313760589,1707684649446,-153.64,0.000343,2]
[313760591,1707684649455,-828.42563344,0.00034316,6]
[313760593,1707684649466,-500.0,0.0003437,2]
[313760595,1707684649475,-14011.03556221,0.00034398,2]
[313760597,1707684649484,-62700.0,0.000344,2]
[313760599,1707684649493,-1000.0,0.00034426,2]
[313760601,1707684649503,-5211.92,0.0003449,10]
[313760603,1707684649511,-4266.472946,0.000345,2]
[313760605,1707684649520,-545.542369,0.000345,2]
[313760607,1707684649529,-5000.0,0.000345,7]
[313760609,1707684649538,-200.0,0.000345,8]
[313760611,1707684649547,-168.0,0.000345,120]
[313760613,1707684649557,-40130.61,0.000345,20]
[313760615,1707684649566,-9188.035675,0.0003452,2]
[313760617,1707684649575,-47144.646609,0.0003452,2]
[313760619,1707684649585,-6953.825664,0.0003452,2]
[313760621,1707684649594,-1458.507822,0.0003452,2]
[313760623,1707684649604,-10000.0,0.00034521,2]
[313760625,1707684649613,-150.0,0.00034548,10]
[313760628,1707684649623,-150.17024411,0.00034566,2]
[313760629,1707684649633,-184.9,0.00034575,7]
[313760632,1707684649643,-151.0,0.00034575,7]
[313760634,1707684649653,-151.0,0.00034575,7]
[313760636,1707684649664,-151.0,0.00034575,7]
[313760637,1707684649674,-614.68345,0.00034575,7]
[313760640,1707684649684,-614.68345,0.00034575,7]
[313760641,1707684649693,-330.791154,0.00034575,7]
[313760643,1707684649702,-164.999976,0.00034575,7]
[313760645,1707684649711,-330.791154,0.00034575,7]
[313760647,1707684649720,-164.999976,0.00034575,7]
[313760649,1707684649730,-151.0,0.00034575,7]
[313760651,1707684649741,-151.0,0.00034575,7]
[313760653,1707684649751,-151.0,0.00034575,7]
[313760655,1707684649760,-271.1195,0.00034575,7]
[313760657,1707684649770,-4272.069139,0.00034575,7]
[313760659,1707684649780,-4272.069139,0.00034575,7]
[313760661,1707684649789,-151.0,0.00034575,7]
[313760663,1707684649799,-151.0,0.00034575,7]
[313760665,1707684649809,-565.062614,0.00034575,7]
[313760667,1707684649819,-1513.826675,0.00034575,7]
[313760669,1707684649829,-151.0,0.00034575,7]
[313760671,1707684649839,-1513.826675,0.00034575,7]
[313760673,1707684649851,-565.062614,0.00034575,7]
[313760675,1707684649866,-252.873058,0.00034575,7]
[313760677,1707684649876,-252.873058,0.00034575,7]
[313760679,1707684649888,-248.292148,0.00034575,7]
[313760681,1707684649899,-248.292148,0.00034575,7]
[313760684,1707684649911,-151.0,0.00034575,7]
[313760686,1707684649922,-151.0,0.00034575,7]
[313760688,1707684649933,-394.544641,0.00034575,7]
[313760689,1707684649944,-151.0,0.00034575,7]
[313760691,1707684649955,-394.544641,0.00034575,7]
[313760693,1707684649965,-151.0,0.00034575,7]
[313760695,1707684649975,-6046.815854,0.00034575,7]
[313760696,1707684649987,-6046.815854,0.00034575,7]
[313760697,1707684649997,-75000.0,0.00034575,15]
[313760698,1707684650008,-607.641422,0.00034597,2]
[313760699,1707684650018,-593.671814,0.00034597,2]
[313760700,1707684650029,-8021.177545,0.00034597,2]
[313760701,1707684650039,-1961.18421182,0.00034597,2]
[313760702,1707684650050,-150.0,0.00034599,30]
[313760703,1707684650060,-151.0,0.000346,7]
[313760704,1707684650070,-151.0,0.000346,7]
[313760705,1707684650081,-227.690204,0.000346,7]
[313760707,1707684650091,-151.0,0.000346,7]
[313760709,1707684650104,-151.0,0.000346,7]
[313760711,1707684650114,-219.530882,0.000346,7]
[313760713,1707684650125,-289.030635,0.000346,7]
[313760715,1707684650136,-289.030635,0.000346,7]
[313760717,1707684650146,-157.551952,0.000346,7]
[313760719,1707684650156,-157.551952,0.000346,7]
[313760721,1707684650166,-270.570413,0.000346,7]
[313760723,1707684650175,-270.570413,0.000346,7]
[313760725,1707684650186,-151.0,0.000346,7]
[313760727,1707684650196,-151.0,0.000346,7]
[313760729,1707684650205,-1369.757817,0.000346,7]
[313760731,1707684650215,-1369.757817,0.000346,7]
[313760733,1707684650224,-151.0,0.000346,7]
[313760735,1707684650233,-812.275566,0.000346,7]
[313760737,1707684650242,-227.962245,0.000346,7]
[313760739,1707684650251,-812.275566,0.000346,7]
[313760741,1707684650261,-173.62612,0.000346,7]
[313760743,1707684650270,-173.62612,0.000346,7]
[313760745,1707684650279,-261.450472,0.000346,7]
[313760747,1707684650288,-261.450472,0.000346,7]
[313760749,1707684650297,-226.838109,0.000346,7]
[313760751,1707684650307,-226.838109,0.000346,7]
[313760753,1707684650316,-302.630419,0.000346,7]
[313760755,1707684650325,-302.630419,0.000346,7]
[313760757,1707684650334,-725.572931,0.000346,7]
[313760759,1707684650344,-725.572931,0.000346,7]
[313760761,1707684650354,-212.715945,0.000346,7]
[313760763,1707684650364,-212.715945,0.000346,7]
[313760765,1707684650373,-16333.21289127,0.000346,2]
[313760767,1707684650383,-16333.21289127,0.000346,2]
[313760769,1707684650392,-16333.21289127,0.000346,2]
[313760771,1707684650402,-16333.21289127,0.000346,2]
[313760773,1707684650412,-16333.21289127,0.000346,2]
[313760775,1707684650423,-16333.21289127,0.000346,2]
[313760777,1707684650433,-16333.21289127,0.000346,2]
[313760779,1707684650443,-16333.21289127,0.000346,2]
[313760781,1707684650457,-16333.21289127,0.000346,2]
[313760783,1707684650468,-151.0,0.000346,7]
[313760784,1707684650478,-16333.21289127,0.000346,2]
[313760787,1707684650489,-151.0,0.000346,7]
[313760788,1707684650499,-16333.21289127,0.000346,2]
[313760790,1707684650509,-165.287104,0.000346,7]
[313760792,1707684650519,-165.287104,0.000346,7]
[313760795,1707684650530,-151.0,0.000346,7]
[313760797,1707684650540,-151.0,0.000346,7]
[313760798,1707684650551,-151.0,0.000346,7]
[313760801,1707684650562,-151.0,0.000346,7]
[313760802,1707684650572,-151.0,0.000346,7]
[313760804,1707684650583,-151.0,0.000346,7]
[313760807,1707684650593,-2091.405351,0.000346,7]